Cogmind - Beta 13 *** ADVENTURER MODE // 2024.04.13 @ 22:15:20 Player: lever1209 Result: Destroyed by B-75 Beast with Magnetic Acceleration Cannon Performance ------------- Evolutions (5) 2500 Regions Visited (12) 2400 Robots Destroyed (5) 25 Value Destroyed (273) 273 Prototype IDs (6) 120 Alien Tech Used (0) 0 Bonus (2904) 2904 TOTAL SCORE: 8222 Bonus ------- Pacifist 1325 Follower Combat Kills 179 Entered Garrisons 400 Used RIF Installer 500 Entered DSFs 500 Cogmind --------- Core Integrity 0/1000 Matter 116/300 Energy 100/100 System Corruption 4% Temperature Cool (12) Movement Flying (35) Location -5/Extension Parts ------- > --- POWER (2) -------- (None) > --- PROPULSION (8) --- Cooled VTOL Module > --- UTILITY (5) ------ Power Amplifier Enhanced Optical Array > --- WEAPON (2) ------- (None) > --- INVENTORY (5) ---- Fission Core Micro Fission Core Reinforced Antimatter Reactor Compact Matter Pod (0) Force Field Peak State ------------ > --- POWER ------------ Light Nuclear Core Light Nuclear Core > --- PROPULSION ------- Gravmag System Gravmag Array Gravmag Array Gravmag Array > --- UTILITY ---------- Gravity Neutralizer Enhanced Optical Array Enhanced Optical Array Target Analyzer > --- WEAPON ----------- Wave Gun Remote Datajack > --- INVENTORY -------- Reinforced Antimatter Reactor VTOL Module Cesium-ion Thruster Compact Matter Pod Improved Force Field [Rating: 71] Favorites ----------- Power Light Nuclear Core Power Core Light Nuclear Core Reactor Light Antimatter Reactor Propulsion Gravmag System Leg Carbon-fiber Leg Wheel Armored Huge Wheel Hover Unit Gravmag System Flight Unit Nuclear Pulse Thruster Utility Enhanced Optical Array Device Gravity Neutralizer Storage High-capacity Battery Processor Enhanced Optical Array Hackware Improved Hacking Suite Weapon Wave Gun Energy Gun Wave Gun Energy Cannon Improved EM Pulse Cannon Ballistic Gun Improved Assault Rifle Ballistic Cannon Heavy Flak Cannon Special Weapon Remote Datajack Build | -11 -10 -9 -8 -8 -7 -7 -6 -6 -6 -6 -5 -5 ------- Run | Yrd Mat Mat Mat Sto Fac DSF Fac Gar Fac Gar Fac Ext Slots Evolved 10 | . . 2 2 . 2 . 2 . . . 2 . Power 1 | . . . 1 . . . . . . . . . Propulsion 6 | . . 2 . . 2 . 1 . . . 1 . Utility 3 | . . . 1 . . . 1 . . . 1 . Weapon . | . . . . . . . . . . . . . Parts Attached 80 | . 2 5 3 5 3 5 12 9 28 . 4 4 Power 10 | . . . . . 1 . . 3 5 . . 1 Engine . | . . . . . . . . . . . . . Core 8 | . . . . . 1 . . 2 4 . . 1 Reactor 2 | . . . . . . . . 1 1 . . . Propulsion 27 | . . . 2 . . 5 5 3 10 . 2 . Treads . | . . . . . . . . . . . . . Leg 1 | . . . . . . . 1 . . . . . Wheel 2 | . . . 2 . . . . . . . . . Hover 13 | . . . . . . 5 3 . 5 . . . Flight 11 | . . . . . . . 1 3 5 . 2 . Utility 29 | . 2 2 1 4 1 . 7 1 6 . 2 3 Device 21 | . . 2 1 4 1 . 5 1 3 . 2 2 Storage 3 | . 1 . . . . . 1 . . . . 1 Processor 4 | . 1 . . . . . 1 . 2 . . . Hackware 1 | . . . . . . . . . 1 . . . Protection . | . . . . . . . . . . . . . Artifact . | . . . . . . . . . . . . . Weapon 14 | . . 3 . 1 1 . . 2 7 . . . Energy Gun 6 | . . 1 . . . . . 2 3 . . . Energy Cannon 1 | . . . . . 1 . . . . . . . Ballistic Gun 3 | . . 2 . 1 . . . . . . . . Ballistic Cannon 2 | . . . . . . . . . 2 . . . Launcher . | . . . . . . . . . . . . . Special Weapon 2 | . . . . . . . . . 2 . . . Impact Weapon . | . . . . . . . . . . . . . Slashing Weapon . | . . . . . . . . . . . . . Piercing Weapon . | . . . . . . . . . . . . . Special Melee Weapon . | . . . . . . . . . . . . . Unidentified Prototypes 4 | . . 1 . . . . 1 . 1 . 1 . Parts Lost 32 | . . 1 . 6 . . 5 2 13 1 4 . Power 5 | . . . . . . . . 1 3 1 . . Propulsion 13 | . . . . 2 . . 5 . 5 . 1 . Utility 9 | . . . . 3 . . . 1 2 . 3 . Weapon 5 | . . 1 . 1 . . . . 3 . . . Highest Loss Streak 6 | . . 1 . 6 . . 3 1 3 1 3 . To Critical Strikes 1 | . . . . 1 . . . . . . . . Average Slot Usage (%) 39 | . 3 28 45 52 5 21 46 24 59 24 17 19 Core 3 | . . . . . . . . 3 9 4 . . Wheel 1 | . . . 16 17 . . . . . . . . Hover 8 | . . . . . . 13 25 . 14 . . . Flight 3 | . . . . . . . . 12 4 . 1 5 Device 7 | . . 10 10 21 5 7 11 . 5 6 3 4 Processor 8 | . 3 10 . . . . 4 6 14 13 11 7 Energy Gun 1 | . . 7 . . . . . 1 4 . . . Ballistic Gun 1 | . . . 18 13 . . . . . . . . Naked Turns 99 | . 30 . . 7 62 . . . . . . . Heaviest Build 24 | . . 8 9 24 3 3 11 15 18 5 3 2 Greatest Support 84 | 3 3 9 62 28 3 45 55 15 84 15 7 5 Greatest Overweight (x) 3 | . . . . . . . 3 1 2 . . . Average Overweight (x) . | . . . . . . . . . . . . . Largest Inventory Capacity 8 | 5 8 5 5 5 5 5 5 5 5 5 5 5 Average Capacity 5 | 5 5 5 5 5 5 5 5 5 5 5 5 5 Most Carried 5 | . 2 4 5 5 5 5 5 5 5 5 5 5 Average Carried 4 | . . 3 4 4 5 5 5 4 4 5 4 4 Final Capacity 5 | 5 5 5 5 5 5 5 5 5 5 5 5 5 Final Carried 5 | . 2 4 5 5 5 5 5 5 5 5 4 5 Class Distribution -------------------- 81% | Mutant 9% | Scavenger-Mutant 5% | Scavenger-Sprinter Dominant Class ---------------- Mutant | -10/Materials Mutant | -9/Materials Mutant | -8/Materials Mutant | -8/Storage Mutant | -7/Factory Mutant | -7/DSF Mutant | -6/Factory Mutant | -6/Garrison Mutant | -6/Factory Mutant | -6/Garrison Mutant | -5/Factory Mutant | -5/Extension Resources | -11 -10 -9 -8 -8 -7 -7 -6 -6 -6 -6 -5 -5 ----------- Run | Yrd Mat Mat Mat Sto Fac DSF Fac Gar Fac Gar Fac Ext Matter Collected 976 | 66 . . . 242 . 3 . 315 334 . 16 . Remotely . | . . . . . . . . . . . . . Salvage Created 110 | . . . . . . . . . 110 . . . Parts 8 | . . . . . . . . . 8 . . . Haulers Intercepted . | . . . . . . . . . . . . . Recyclers Shooed . | . . . . . . . . . . . . . Parts Field Recycled . | . . . . . . . . . . . . . Retrieved Matter . | . . . . . . . . . . . . . Parts Self-Destructed . | . . . . . . . . . . . . . Prevented . | . . . . . . . . . . . . . Kills | -11 -10 -9 -8 -8 -7 -7 -6 -6 -6 -6 -5 -5 ------- Run | Yrd Mat Mat Mat Sto Fac DSF Fac Gar Fac Gar Fac Ext Combat Hostiles Destroyed 5 | . . . . . . . . . 5 . . . Guns 2 | . . . . . . . . . 2 . . . Cannons 3 | . . . . . . . . . 3 . . . Classes Destroyed 4 | . . . . . . . . . 4 . . . Swarmer 1 | . . . . . . . . . 1 . . . Sentry 1 | . . . . . . . . . 1 . . . Hunter 2 | . . . . . . . . . 2 . . . Programmer 1 | . . . . . . . . . 1 . . . Best Kill Streak 3 | . . . . . . . . . 3 . . . Combat Bots Only 3 | . . . . . . . . . 3 . . . Max Kills in Single Turn 1 | . . . . . . . . . 1 . . . Gunslinging . | . . . . . . . . . . . . . Exploded . | . . . . . . . . . . . . . Melee . | . . . . . . . . . . . . . Uniques/NPCs Destroyed . | . . . . . . . . . . . . . Combat | -11 -10 -9 -8 -8 -7 -7 -6 -6 -6 -6 -5 -5 -------- Run | Yrd Mat Mat Mat Sto Fac DSF Fac Gar Fac Gar Fac Ext Hostile Shots Fired 802 | . 2 54 16 130 . 5 83 39 262 10 167 34 Missed 323 | . 2 22 3 35 . 1 41 21 98 5 75 20 Damage Taken 5530 | . 1 357 143 1162 . 169 524 213 1637 73 1030 221 Core 2453 | . 1 213 22 306 . 169 220 87 365 57 830 183 Absorbed by Shields 13 | . . . . 6 . . 7 . . . . . Ignored by Resistances 1585 | . . 103 41 328 . 44 146 61 480 20 299 63 Core Remaining (%) 62 | 100 99 46 . 40 . 75 . . . 14 . . Volleys Fired 16 | . . 1 . 1 . . . . 14 . . . Largest 2 | . . 1 . 1 . . . . 2 . . . Hottest 106 | . . 40 . 23 . . . . 106 . . . Shots Fired 26 | . . 1 . 1 . . . . 24 . . . Gun 8 | . . 1 . 1 . . . . 6 . . . Cannon 18 | . . . . . . . . . 18 . . . Launcher . | . . . . . . . . . . . . . Special . | . . . . . . . . . . . . . Kinetic 19 | . . . . 1 . . . . 18 . . . Thermal 7 | . . 1 . . . . . . 6 . . . Explosive . | . . . . . . . . . . . . . Electromagnetic . | . . . . . . . . . . . . . Robot Hit Streak 17 | . . 1 . . . . . . 17 . . . Robot Miss Streak 3 | . . . . . . . . . 3 . . . Penetration Max . | . . . . . . . . . . . . . Secondary Targets . | . . . . . . . . . . . . . Shots Hit Robots 22 | . . 1 . . . . . . 21 . . . Core Hits 28 | . 1 . . . . . . . 26 . 1 . Critical Kills . | . . . . . . . . . . . . . Critical Parts Destroyed . | . . . . . . . . . . . . . Critical Strikes 1 | . . . . . . . . . 1 . . . Burn 1 | . . . . . . . . . 1 . . . Melee Attacks . | . . . . . . . . . . . . . Impact . | . . . . . . . . . . . . . Slashing . | . . . . . . . . . . . . . Piercing . | . . . . . . . . . . . . . Sneak Attacks . | . . . . . . . . . . . . . Combat Hostiles . | . . . . . . . . . . . . . Follow-up Attacks . | . . . . . . . . . . . . . Damage Inflicted 630 | . 3 18 . 27 . . . . 563 . 19 . Guns 112 | . . 11 . . . . . . 101 . . . Cannons 459 | . . . . . . . . . 459 . . . Explosions . | . . . . . . . . . . . . . Melee . | . . . . . . . . . . . . . Ramming 59 | . 3 7 . 27 . . . . 3 . 19 . Kinetic 459 | . . . . . . . . . 459 . . . Thermal 112 | . . 11 . . . . . . 101 . . . Explosive . | . . . . . . . . . . . . . Electromagnetic . | . . . . . . . . . . . . . Impact . | . . . . . . . . . . . . . Slashing . | . . . . . . . . . . . . . Piercing . | . . . . . . . . . . . . . Highest Corruption 4 | . . . . 2 . . 1 2 2 2 4 4 Average Corruption 2 | . . . . 1 . . 1 1 2 2 4 4 Corruption Purged 1 | . . . . . . . 1 . . . . . Corruption Blocked 4 | . . . . . . . . 4 . . . . Effects 40 | . . . . . . . 5 8 19 . 4 4 Message Errors 11 | . . . . . . . . 3 6 . . 2 Matter Fused 6 | . . . . . . . 2 3 1 . . . Heat Flow Errors 4 | . . . . . . . . . 2 . 1 1 Energy Discharges 3 | . . . . . . . . . 3 . . . Parts Rejected 2 | . . . . . . . 1 . 1 . . . Parts Fused 1 | . . . . . . . 1 . . . . . Data Loss (minor) 8 | . . . . . . . . 2 4 . 2 . Data Loss (major) 3 | . . . . . . . 1 . . . 1 1 Misfires 1 | . . . . . . . . . 1 . . . Alerts 1 | . . . . . . . . . 1 . . . Overload Shots . | . . . . . . . . . . . . . Overflow Damage . | . . . . . . . . . . . . . Projectiles . | . . . . . . . . . . . . . Explosions . | . . . . . . . . . . . . . Melee . | . . . . . . . . . . . . . Knockbacks 1 | . . . . . . . . . 1 . . . Impact . | . . . . . . . . . . . . . Kinetic 1 | . . . . . . . . . 1 . . . Secondary . | . . . . . . . . . . . . . Self-Inflicted Damage 25 | . 1 3 . 11 . . . . 1 . 9 . Shots . | . . . . . . . . . . . . . Rammed 17 | . 1 1 . 7 . . 2 . 2 . 4 . Targets Rammed 17 | . 1 1 . 7 . . 2 . 2 . 4 . Kicked . | . . . . . . . . . . . . . Crushed . | . . . . . . . . . . . . . Highest Temperature 306 | . . . . 14 . . 5 . 306 . 232 221 Average Temperature 103 | . . . . 9 . . 5 . 102 . 132 127 Received Heat Transfer 1827 | . . 144 81 723 . . 189 27 474 27 135 27 Siege Activations . | . . . . . . . . . . . . . Robots Corrupted . | . . . . . . . . . . . . . Combat Hostiles . | . . . . . . . . . . . . . Parts Fried . | . . . . . . . . . . . . . Impact Corruptions . | . . . . . . . . . . . . . Robots Melted . | . . . . . . . . . . . . . Combat Hostiles . | . . . . . . . . . . . . . Parts Melted . | . . . . . . . . . . . . . Heat Transferred 247 | . . 25 . . . . . . 222 . . . Parts Sabotaged . | . . . . . . . . . . . . . Parts Stolen . | . . . . . . . . . . . . . Parts Stripped . | . . . . . . . . . . . . . Power Chain Reactions . | . . . . . . . . . . . . . Alert | -11 -10 -9 -8 -8 -7 -7 -6 -6 -6 -6 -5 -5 ------- Run | Yrd Mat Mat Mat Sto Fac DSF Fac Gar Fac Gar Fac Ext Peak Influence 527 | . 30 239 112 94 15 1 131 232 265 156 527 298 Initial 222 | . . 10 82 40 . 1 . 80 105 101 68 222 Average 111 | . 8 103 87 40 4 1 39 212 107 130 224 243 Maximum Alert Level 2 | . . 1 . . . . . 1 1 . 2 1 Low Security (%) 75 | 100 100 82 100 100 100 100 100 11 85 100 54 . Level 1 23 | . . 17 . . . . . 88 14 . 30 100 Level 2 1 | . . . . . . . . . . . 15 . Level 3 . | . . . . . . . . . . . . . Level 4 . | . . . . . . . . . . . . . Level 5 . | . . . . . . . . . . . . . High Security . | . . . . . . . . . . . . . Max Security . | . . . . . . . . . . . . . Squads Dispatched 13 | . . . . 1 . . 3 . 5 . 3 1 Investigation 5 | . . . . . . . 1 . 1 . 3 . Extermination 3 | . . . . . . . 1 . 2 . . . Reinforcement 4 | . . . . 1 . . . . 2 . . 1 Assault . | . . . . . . . . . . . . . Garrison 1 | . . . . . . . 1 . . . . . Intercept . | . . . . . . . . . . . . . Searches Triggered 1 | . . . . . . . . . . . 1 . Construction Impeded . | . . . . . . . . . . . . . Haulers Reinforced . | . . . . . . . . . . . . . Active Scanning Responses . | . . . . . . . . . . . . . Cargo Convoy Interrupts . | . . . . . . . . . . . . . Stealth | -11 -10 -9 -8 -8 -7 -7 -6 -6 -6 -6 -5 -5 --------- Run | Yrd Mat Mat Mat Sto Fac DSF Fac Gar Fac Gar Fac Ext Distress Signals 6 | . . 1 . 2 . . . . . . 2 1 Communications Jammed . | . . . . . . . . . . . . . Distress Signals . | . . . . . . . . . . . . . Times Spotted 175 | . 2 14 5 22 1 2 13 10 42 7 44 13 Peak Tracking Total 16 | . 2 9 7 16 1 2 6 4 10 8 11 8 Tactical Retreats 37 | . 1 4 . 2 . . 2 . 14 . 12 2 Traps | -11 -10 -9 -8 -8 -7 -7 -6 -6 -6 -6 -5 -5 ------- Run | Yrd Mat Mat Mat Sto Fac DSF Fac Gar Fac Gar Fac Ext Traps Triggered 16 | . . . . 2 . 1 . 6 4 1 2 . Indirectly . | . . . . . . . . . . . . . Trap Hack Attempts . | . . . . . . . . . . . . . Triggered . | . . . . . . . . . . . . . Disarmed 3 | . . . . . . . . . 3 . . . Reprogrammed 6 | . . . . . . . . . . . 6 . Reused 3 | . . . . . . . . . . . 3 . Traps Extracted . | . . . . . . . . . . . . . Installed . | . . . . . . . . . . . . . Triggered 3 | . . . . . . . . . . . 3 . Machines | -11 -10 -9 -8 -8 -7 -7 -6 -6 -6 -6 -5 -5 ---------- Run | Yrd Mat Mat Mat Sto Fac DSF Fac Gar Fac Gar Fac Ext Machines Disabled . | . . . . . . . . . . . . . Max in Single Turn . | . . . . . . . . . . . . . Machines Repaired . | . . . . . . . . . . . . . Machines Dismantled . | . . . . . . . . . . . . . Machines Sabotaged . | . . . . . . . . . . . . . Overloaded Fab Kills . | . . . . . . . . . . . . . Hacking | -11 -10 -9 -8 -8 -7 -7 -6 -6 -6 -6 -5 -5 --------- Run | Yrd Mat Mat Mat Sto Fac DSF Fac Gar Fac Gar Fac Ext Machines Accessed 34 | . 1 1 . 2 4 . 8 1 8 2 6 1 Terminals 23 | . 1 1 . 2 2 . 2 1 5 2 6 1 Fabricators 4 | . . . . . 1 . 3 . . . . . Repair Stations 1 | . . . . . . . 1 . . . . . Recycling Units 2 | . . . . . 1 . 1 . . . . . Scanalyzers . | . . . . . . . . . . . . . Garrison Access 4 | . . . . . . . 1 . 3 . . . Total Hacks 62 | . 3 2 . 2 7 . 15 1 14 3 13 2 Successful 29 | . . 1 . 2 3 . 5 1 9 1 6 1 Failed 33 | . 3 1 . . 4 . 10 . 5 2 7 1 Catastrophic 4 | . . . . . . . 2 . . . 2 . Database Lockouts . | . . . . . . . . . . . . . Manual . | . . . . . . . . . . . . . Terminals 46 | . 3 2 . 2 4 . 5 1 11 3 13 2 Fabricators 7 | . . . . . 1 . 6 . . . . . Repair Stations 1 | . . . . . . . 1 . . . . . Recycling Units 4 | . . . . . 2 . 2 . . . . . Scanalyzers . | . . . . . . . . . . . . . Garrison Access 4 | . . . . . . . 1 . 3 . . . Terminal Hacks 21 | . . 1 . 2 2 . 1 1 6 1 6 1 Prototype ID Bank 1 | . . . . 1 . . . . . . . . Open Door 3 | . . . . 1 . . . . . . 1 1 Open DSF 4 | . . . . . 1 . . . 2 . 1 . Emergency Access Points 2 | . . . . . . . . 1 . 1 . . Alert Level 1 | . . . . . . . . . . . 1 . Unreport Threat 2 | . . . . . 1 . . . 1 . . . Disarm Traps 1 | . . . . . . . . . 1 . . . Reprogram Traps 1 | . . . . . . . . . . . 1 . Dispatch Records 1 | . . . . . . . . . . . 1 . Recall Extermination 1 | . . . . . . . . . . . 1 . Recall Reinforcements 1 | . . . . . . . . . 1 . . . Hauler Manifests 1 | . . 1 . . . . . . . . . . Registered Prototypes 1 | . . . . . . . . . 1 . . . Zone Layout 1 | . . . . . . . 1 . . . . . Fabricator Hacks 3 | . . . . . 1 . 2 . . . . . Network Status 2 | . . . . . 1 . 1 . . . . . Build 1 | . . . . . . . 1 . . . . . Repair Station Hacks . | . . . . . . . . . . . . . Recycling Unit Hacks 1 | . . . . . . . 1 . . . . . Retrieve Components 1 | . . . . . . . 1 . . . . . Scanalyzer . | . . . . . . . . . . . . . Garrison Access Hacks 4 | . . . . . . . 1 . 3 . . . Unlock Access 4 | . . . . . . . 1 . 3 . . . Unauthorized Hacks . | . . . . . . . . . . . . . Terminals . | . . . . . . . . . . . . . Fabricators . | . . . . . . . . . . . . . Repair Stations . | . . . . . . . . . . . . . Recycling Units . | . . . . . . . . . . . . . Scanalyzers . | . . . . . . . . . . . . . Garrison Access . | . . . . . . . . . . . . . Data Cores Recovered . | . . . . . . . . . . . . . Used . | . . . . . . . . . . . . . Hacking Detections 21 | . 1 1 . . 3 . 7 . 3 1 4 1 Full Trace Events 5 | . . . . . . . 1 . 1 1 2 . Feedback Events 1 | . . . . . . . 1 . . . . . Corruption 1 | . . . . . . . 1 . . . . . Feedback Blocked . | . . . . . . . . . . . . . Robot Schematics Acquired . | . . . . . . . . . . . . . Robots Built 3 | . . . . . . . 3 . . . . . Authchips . | . . . . . . . . . . . . . Time 152 | . . . . . . . 152 . . . . . Total Robot Build Rating 15 | . . . . . . . 15 . . . . . Part Schematics Acquired . | . . . . . . . . . . . . . Parts Built . | . . . . . . . . . . . . . Authchips . | . . . . . . . . . . . . . Time . | . . . . . . . . . . . . . Total Part Build Rating . | . . . . . . . . . . . . . Parts Repaired . | . . . . . . . . . . . . . Time . | . . . . . . . . . . . . . Parts Recycled . | . . . . . . . . . . . . . Recycled Matter . | . . . . . . . . . . . . . Retrieved Matter . | . . . . . . . . . . . . . Retrieved Components 1 | . . . . . . . 1 . . . . . Parts Scanalyzed . | . . . . . . . . . . . . . Part Schematics Acquired . | . . . . . . . . . . . . . Parts Damaged . | . . . . . . . . . . . . . Bothacking | -11 -10 -9 -8 -8 -7 -7 -6 -6 -6 -6 -5 -5 ------------ Run | Yrd Mat Mat Mat Sto Fac DSF Fac Gar Fac Gar Fac Ext Used RIF Installer 1 | . . . . . . . . 1 . . . . Robots Hacked . | . . . . . . . . . . . . . Non-combat . | . . . . . . . . . . . . . Combat . | . . . . . . . . . . . . . Robot Hacks Applied . | . . . . . . . . . . . . . Relay Couplers Released 3 | . . . . . . . . 3 . . . . Programmers 3 | . . . . . . . . 3 . . . . Fabnet Peak Effective % . | . . . . . . . . . . . . . Robots Rewired . | . . . . . . . . . . . . . Allies Hacked . | . . . . . . . . . . . . . Hacks Repelled . | . . . . . . . . . . . . . Allies | -11 -10 -9 -8 -8 -7 -7 -6 -6 -6 -6 -5 -5 -------- Run | Yrd Mat Mat Mat Sto Fac DSF Fac Gar Fac Gar Fac Ext Total Allies 16 | . . . . 10 . . 3 . . 2 . 1 Largest Group 10 | . . . . 10 . . 3 . . 2 . 1 Highest-Rated Group 173 | . . . . 173 . . 87 . . 142 . 20 Highest-Rated Ally 80 | . . . . 29 . . 29 . . 80 . 20 Total Orders . | . . . . . . . . . . . . . Ally Attacks 53 | . . . . 25 . . 26 . . 1 . 1 Total Damage 720 | . . . . 315 . . 363 . . 18 . 24 Kills 7 | . . . . 4 . . 3 . . . . . Allies Corrupted 1 | . . . . . . . 1 . . . . . Allies Melted . | . . . . . . . . . . . . . Intel | -11 -10 -9 -8 -8 -7 -7 -6 -6 -6 -6 -5 -5 ------- Run | Yrd Mat Mat Mat Sto Fac DSF Fac Gar Fac Gar Fac Ext Robot Analysis Total . | . . . . . . . . . . . . . Derelict Logs Recovered . | . . . . . . . . . . . . . Drone Launches 12 | . . . . 12 . . . . . . . . Drone Recoveries 7 | . . . . 7 . . . . . . . . Exploration | -11 -10 -9 -8 -8 -7 -7 -6 -6 -6 -6 -5 -5 ------------- Run | Yrd Mat Mat Mat Sto Fac DSF Fac Gar Fac Gar Fac Ext Turns Passed 4294 | 9 47 262 138 346 242 64 694 485 1300 87 393 227 Spaces Moved 6590 | 18 81 425 117 254 447 105 1121 852 1738 158 831 443 Core 2091 | 18 81 425 13 13 447 64 192 . 174 158 506 . Treads . | . . . . . . . . . . . . . Legs . | . . . . . . . . . . . . . Wheels 345 | . . . 104 241 . . . . . . . . Hover 1885 | . . . . . . 41 823 . 1021 . . . Flight 2269 | . . . . . . . 106 852 543 . 325 443 Fastest Speed 30 | 50 50 50 50 50 50 44 40 30 30 50 35 35 Average Speed 49 | 50 50 50 94 97 50 52 53 38 48 50 45 35 Slowest Speed 200 | 50 50 50 100 100 50 60 200 120 200 50 50 35 Overloaded Moves . | . . . . . . . . . . . . . Propulsion Burnouts . | . . . . . . . . . . . . . Robots Hopped 18 | . . . . . . . . . 4 . 3 11 Cave-ins Triggered . | . . . . . . . . . . . . . Exploration Rate (%) 32 | 4 20 30 14 55 9 86 24 67 33 30 17 38 Regions Visited 12 Branch Regions 2 Pre-discovered Areas . | . . . . . . . . . . . . . Known Exits Taken 3 | . . . . . 1 . 1 . 1 . . . Unknown Exits Taken 6 | 1 1 1 1 1 . . . . . . 1 . Scrap Searched . | . . . . . . . . . . . . . Spaces Dug . | . . . . . . . . . . . . . Terrain Destroyed . | . . . . . . . . . . . . . Melee . | . . . . . . . . . . . . . Projectile . | . . . . . . . . . . . . . AOE . | . . . . . . . . . . . . . Terrain Rammed . | . . . . . . . . . . . . . Walls Destroyed . | . . . . . . . . . . . . . Machines Disabled . | . . . . . . . . . . . . . Actions | -11 -10 -9 -8 -8 -7 -7 -6 -6 -6 -6 -5 -5 --------- Run | Yrd Mat Mat Mat Sto Fac DSF Fac Gar Fac Gar Fac Ext Total 7552 | 17 87 471 143 351 464 111 1218 1005 2172 165 843 505 Wait 693 | . . 35 22 60 13 . 75 42 375 . 6 65 Move 6545 | 17 80 424 116 253 446 104 1121 850 1730 157 824 423 Hop 15 | . . . . . . . . . 3 . 3 9 Pick Up 19 | . 3 4 1 2 . 1 . 2 5 . 1 . Fast Attach 65 | . . 3 3 5 3 5 10 9 22 . 3 2 Attach 12 | . 2 2 . . . . . . 5 . 1 2 Detach 6 | . 1 . . . . . . 1 1 . . 3 Swap 3 | . . . . . . . 2 . 1 . . . Drop 41 | . . 1 1 7 2 1 8 5 14 . 1 1 Fire 16 | . . 1 . 1 . . . . 14 . . . Melee . | . . . . . . . . . . . . . Ram 17 | . 1 1 . 7 . . 2 . 2 . 4 . Kick . | . . . . . . . . . . . . . Crush . | . . . . . . . . . . . . . Escape Stasis 120 | . . . . 16 . . . 96 . 8 . . Rewire . | . . . . . . . . . . . . . Trap . | . . . . . . . . . . . . . Miscellaneous . | . . . . . . . . . . . . . Route ------- -11/Scrapyard -10/Materials -9/Materials -8/Materials -8/Storage -7/Factory -7/DSF -6/Factory -6/Garrison (discovered 2 exits: *Fac x2) -6/Factory (discovered 4 exits: *Fac / Gar / Gar / Gar) -6/Garrison -5/Factory -5/Extension History --------- Turn | Location | Event 3 | -11/Scrapyard | Discovered new exit (range 14) 10 | -11/Scrapyard | Entered Materials 44 | -10/Materials | Discovered new exit (range 8) 57 | -10/Materials | Entered another Materials area 57 | -9/Materials | Evolved 2 slots: Propulsion x2 314 | -9/Materials | Core integrity fell below 50% 317 | -9/Materials | Discovered new exit (range 4) 319 | -9/Materials | Entered another Materials area 319 | -8/Materials | Evolved 2 slots: Power x1, Utility x1 360 | -8/Materials | Build established: Mutant 446 | -8/Materials | Discovered new exit (range 11) 457 | -8/Materials | Entered Storage 758 | -8/Storage | Assisted by bots powering up and referring to "LRC-V3" 800 | -8/Storage | Core integrity fell below 50% 800 | -8/Storage | Discovered new exit (range 6) 803 | -8/Storage | Entered Factory 803 | -7/Factory | Evolved 2 slots: Propulsion x2 808 | -7/Factory | Lost 14 allies 827 | -7/Factory | Lost 6 parts (2n3u1w) 1030 | -7/Factory | Identified exit to DSF 1045 | -7/Factory | Entered DSF 1076 | -7/DSF | Additional patrols routed to DSF 1100 | -7/DSF | Discovered new exit (range 16) 1109 | -7/DSF | Entered Factory 1109 | -6/Factory | Evolved 2 slots: Propulsion x1, Utility x1 1282 | -6/Factory | Spotted B-75 Beast 1680 | -6/Factory | Lost 3 parts (3n) 1699 | -6/Factory | Fabricated G-50 Soldier? 1786 | -6/Factory | Garrison activated, responded to threat 1803 | -6/Factory | Identified exit to Garrison 1803 | -6/Factory | Entered Garrison 1803 | -6/Garrison | Warlord forces raided the area 1855 | -6/Garrison | Triggered checkpoint 1857 | -6/Garrison | Triggered checkpoint 1870 | -6/Garrison | Spotted B-75 Beast 1951 | -6/Garrison | Discovered new exit (range 13) 1951 | -6/Garrison | Spotted B-86 Titan 1965 | -6/Garrison | Attempted to access garrison exit controls, blocked by remote lockdown 1981 | -6/Garrison | Triggered checkpoint 2019 | -6/Garrison | Triggered checkpoint 2099 | -6/Garrison | Installed Relay Interface Framework 2114 | -6/Garrison | Warlord forces retreated 2140 | -6/Garrison | Discovered new exit (range 10) 2180 | -6/Garrison | Lost 3 allies 2259 | -6/Garrison | Triggered checkpoint 2288 | -6/Garrison | Entered Factory 2289 | -6/Factory | Identified exit to DSF 2293 | -6/Factory | Identified exit to Garrison 2407 | -6/Factory | Lost 3 parts (1n1u1w) 2412 | -6/Factory | Discovered new exit (range 15) 2418 | -6/Factory | Identified exit to Garrison 2837 | -6/Factory | Build established: Scavenger-Mutant 2972 | -6/Factory | Core integrity fell below 50% 3011 | -6/Factory | Lost 3 parts (2p1n) 3370 | -6/Factory | Lost 3 parts (2n1w) 3545 | -6/Factory | Identified exit to Garrison 3581 | -6/Factory | Build established: Mutant 3588 | -6/Factory | Entered Garrison 3600 | -6/Garrison | Found embedded Infiltrators 3604 | -6/Garrison | Triggered checkpoint 3651 | -6/Garrison | Core integrity fell below 20% 3656 | -6/Garrison | Triggered checkpoint 3663 | -6/Garrison | Triggered checkpoint 3666 | -6/Garrison | Triggered checkpoint 3672 | -6/Garrison | Discovered new exit (range 8) 3675 | -6/Garrison | Entered Factory 3675 | -5/Factory | Evolved 2 slots: Propulsion x1, Utility x1 3822 | -5/Factory | Lost 3 parts (3u) 3878 | -5/Factory | Core integrity fell below 50% 3975 | -5/Factory | Search patrols dispatched 4031 | -5/Factory | Core integrity fell below 20% 4067 | -5/Factory | Discovered new exit (range 6) 4068 | -5/Factory | Entered Extension 4100 | -5/Extension | Spotted B-75 Beast 4178 | -5/Extension | Rescued a captive Derelict 4291 | -5/Extension | Spotted B-75 Beast 4295 | -5/Extension | Destroyed by B-75 Beast with Magnetic Acceleration Cannon Last Messages --------------- data lost. 04177_ Connecting with Door Terminal... 04177_ Current location identified: Extension >>Open(Door) Sealed Heavy Doors opened. 04178_ 66-IJF(b): "Free at last!" 04226_ K-01 Serf enters Transfer Station. 04230_ U-05 Engineer enters Transfer Station. 04230_ K-01 Serf enters Transfer Station. 04232_ T-07 Excavator enters Transfer Station. 04236_ K-01 Serf enters Transfer Station. 04266_ Slug penetrates Wall. [Achievement: Cya!] 04272_ Penetrated by Slug. 04272_ Slug penetrates Wall. 04276_ Penetrated by Slug. 04285_ Slug penetrates U-05 Engineer. 04285_ U-05 Engineer destroyed. 04293_ W-25 Informer distress signal alerts nearby ally. Map ----- +----------------------------------------------------+ | ?????????????????????????????????????????????????? | | ?????????????????????????????????????????????????? | | ?????????????????????????????????????????????????? | | ?????????????????????????????????????????????????? | | ?????????????????????????????????????????????????? | | ?????????????????????????????????????????????????? | | ?????????????????????????????????????????????????? | | ?????????????????????????????????????????????????? | | ?????????????????????????????????????????????????? | | ?????????????????????????????????????????????????? | | ?????????????????????????????????????????????????? | | ?????????????????????????????????????????????????? | | ?????????????????????????????????????????????????? | | ?????????????????????????????????????????????????? | | ?????????????????????????????????????????????????? | | ?????????????????????????????????????????????????? | | ??????????????????????????????#??##??#???????????? | | ????????????????????????????? ### ## ###R##??????? | | ????????????????????????????? ""Y Y ""R""??????? | | ????????????????????????????"g" R " " #?????? | | ???????????????????????????? w u #?????? | | ??????????????????????##### #?????? | | #######################;#;# g ##????? | | u w ?? | | % ?? | | @ ?? | | ??? | | AR k R uu ??? | | ####+###################### BB BB ###???? | | ### #???????????????????? BB BB #?????? | | #???????????????????? #?????? | | ###!!!#???????????????????? #?????? | | ??#####???????????????????? #?????? | | ???????????????????????????#####T#"""#######?????? | | ????????????????????????????????##???????????????? | | ?????????????????????????????????????????????????? | | | | | | | | | | | | | | | | | | | | | | | | | | | | | +----------------------------------------------------+ Best States ------------- Heat Dissipation 40 Energy Generation 29 Energy Capacity 350 Matter Stores 300 Matter Capacity 450 Sight Range 22 Terrain Scan Range 16 Terrain Scan Density 10 ECM Strength 1 Cloak Strength 2 Power Amplification 20 Additional Mass Support 12 Resistance: KI 40 Resistance: TH 20 Resistance: EX 45 Resistance: EM 20 Resistance: I 20 Resistance: S 20 Resistance: P 20 Point Defense Rating 80 Evasion (%) 64 Targeting Accuracy 5 Target Analysis 5 Offensive Hacking 22 Item Schematics ----------------- None Robot Schematics ------------------ None Fabricated ------------ G-50 Soldier | x3 | -6/Factory | Preloaded Alien Tech Used ----------------- None Achievements -------------- Cya! Infiltrator My Command Is Your Wish Party Time Release The Drones! Slippery One The More The Merrier Challenges ------------ None Game ------ Seed AnalysisPortableClaw Manual? 0 Play Time 01:37:30 Cumulative 17.9 hours Start 2024.04.13 @ 20:30:18 End 2024.04.13 @ 22:15:20 Sessions 1 Manual Loads 0 Difficulty Adventurer Special Mode None Game No. 4 Rogue 0 Adventurer 4 Explorer 0 Win Type - Total 0 Types 0/0/0/0/0/0/0/0/0 Lore% 5 Gallery% 14 Achievement% 13 Wizard Run 0 Options --------- Layout 1 ASCII 0 Keyboard 0 Movement Mouse Keybinds 0 Fullscreen 1 Font 24/Smallcaps Map View 50x35 Zoom Use 0% Tactical HUD 1 Map Filters NONE Filters NONE Steam 1 RUN: 9bb39ac0-09a9-4da7-a02b-9d2e8b9edfc6